fUSD/lending_fUSD_20250221
["ID","MTS","AMOUNT","RATE_DAILY","PERIOD"]
[354014527,1740180674072,-500.0,0.00011778,2]
[354014528,1740180674082,-820.61,0.00011778,2]
[354014529,1740180674092,-500.0,0.00011778,2]
[354014530,1740180674102,-738.7,0.00011778,2]
[354014531,1740180674111,-500.0,0.00011778,2]
[354014532,1740180674122,-500.0,0.00011778,2]
[354014533,1740180674132,-500.0,0.00011778,2]
[354014534,1740180674141,-500.0,0.00011778,2]
[354014535,1740180674151,-500.0,0.00011778,2]
[354014536,1740180674161,-500.0,0.00011778,2]
[354014537,1740180674171,-469.17,0.00011778,2]
[354014538,1740180674181,-500.0,0.00011778,2]
[354014539,1740180674190,-500.0,0.00011778,2]
[354014540,1740180674200,-219.04,0.00011778,2]
[354014541,1740180674209,-500.0,0.00011778,2]
[354014542,1740180674220,-1652.98,0.00011778,2]
[354014543,1740180674237,-500.0,0.00011778,2]
[354014544,1740180674246,-1014.71,0.00011778,2]
[354014545,1740180674256,-500.0,0.00011778,2]
[354014546,1740180674267,-1571.16,0.00011778,2]
[354014547,1740180674277,-605.21,0.00011778,2]
[354014548,1740180674287,-1000.0,0.00011778,2]
[354014549,1740180674296,-809.41,0.00011778,2]
[354014550,1740180674309,-500.0,0.00011778,2]
[354014551,1740180674320,-500.0,0.00011778,2]
[354014552,1740180674330,-180.41,0.00011778,2]
[354014553,1740180674340,-817.73,0.00011778,2]
[354014554,1740180674350,-500.0,0.00011778,2]
[354014555,1740180674361,-813.29,0.00011778,2]
[354014556,1740180674371,-500.0,0.00011778,2]
[354014557,1740180674382,-500.0,0.00011778,2]
[354014558,1740180674392,-500.0,0.00011778,2]
[354014559,1740180674401,-598.74,0.00011778,2]
[354014560,1740180674412,-500.0,0.00011778,2]
[354014561,1740180674422,-544.58,0.00011778,2]
[354014562,1740180674433,-500.0,0.00011778,2]
[354014563,1740180674444,-604.85,0.00011778,2]
[354014564,1740180674455,-500.0,0.00011778,2]
[354014565,1740180674466,-500.0,0.00011778,2]
[354014566,1740180674476,-763.11,0.00011778,2]
[354014567,1740180674486,-514.53,0.00011778,2]
[354014568,1740180674497,-523.21,0.00011778,2]
[354014569,1740180674507,-500.0,0.00011779,2]
[354014570,1740180674518,-477.09013436,0.00011779,2]
[354014571,1740180674528,-944.98,0.0001178,2]
[354014572,1740180674538,-500.0,0.0001178,2]
[354014573,1740180674548,-500.0,0.0001178,2]
[354014574,1740180674558,-602.43,0.0001178,2]
[354014575,1740180674567,-726.8,0.0001178,2]
[354014576,1740180674576,-500.0,0.0001178,2]
[354014577,1740180674586,-500.0,0.0001178,2]
[354014578,1740180674597,-1601.17,0.0001178,2]
[354014579,1740180674607,-500.0,0.0001178,2]
[354014580,1740180674617,-561.26,0.0001178,2]
[354014581,1740180674628,-188.02634302,0.0001178,2]
[354014582,1740180674639,-686.26,0.0001178,2]
[354014583,1740180674649,-658.34,0.0001178,2]
[354014584,1740180674660,-1257.33,0.0001178,2]
[354014585,1740180674670,-786.53,0.0001178,2]
[354014586,1740180674681,-796.14,0.0001178,2]
[354014587,1740180674691,-671.55,0.0001178,2]
[354014588,1740180674702,-578.65,0.0001178,2]
[354014589,1740180674712,-2368.54,0.0001178,2]
[354014590,1740180674723,-619.4,0.0001178,2]
[354014591,1740180674735,-527.9,0.0001178,2]
[354014592,1740180674745,-424.38918228,0.00011805,2]
[354014593,1740180674756,-218.18394942,0.00011828,2]
[354014594,1740180674767,-500.0,0.00011859,2]
[354014595,1740180674777,-500.0,0.00011859,2]
[354014596,1740180674787,-500.0,0.00011859,2]
[354014597,1740180674798,-500.0,0.00011859,2]
[354014598,1740180674808,-500.0,0.00011859,2]
[354014599,1740180674818,-960.49,0.00011859,2]
[354014600,1740180674829,-1496.97,0.00011859,2]
[354014601,1740180674840,-584.0,0.00011859,2]
[354014602,1740180674850,-1318.76,0.00011859,2]
[354014603,1740180674861,-527.01,0.00011859,2]
[354014604,1740180674872,-500.0,0.00011859,2]
[354014605,1740180674884,-265.08,0.0001186,2]
[354014606,1740180674894,-455.51,0.0001186,2]
[354014607,1740180674905,-531.46,0.0001186,2]
[354014608,1740180674915,-500.0,0.0001186,2]
[354014609,1740180674926,-500.0,0.0001186,2]
[354014610,1740180674936,-500.0,0.0001186,2]
[354014611,1740180674946,-500.0,0.0001186,2]
[354014612,1740180674959,-500.0,0.0001186,2]
[354014613,1740180674970,-500.0,0.0001186,2]
[354014614,1740180674982,-500.0,0.0001186,2]
[354014615,1740180674992,-257.65,0.0001186,2]
[354014616,1740180675003,-567.73,0.0001186,2]
[354014617,1740180675013,-346.78,0.0001186,2]
[354014618,1740180675025,-500.0,0.0001186,2]
[354014619,1740180675036,-908.79,0.0001186,2]
[354014620,1740180675047,-536.96,0.0001186,2]
[354014621,1740180675058,-807.0,0.0001186,2]
[354014622,1740180675068,-1363.91,0.0001186,2]
[354014623,1740180675078,-2037.76,0.0001186,2]
[354014624,1740180675088,-500.0,0.0001186,2]
[354014625,1740180675099,-537.92,0.0001186,2]
[354014626,1740180675108,-620.22,0.0001186,2]
[354014627,1740180675118,-500.0,0.0001186,2]
[354014628,1740180675127,-500.0,0.0001186,2]
[354014629,1740180675137,-500.0,0.0001186,2]
[354014630,1740180675147,-545.7,0.0001186,2]
[354014631,1740180675156,-652.61,0.0001186,2]
[354014632,1740180675166,-500.0,0.0001186,2]
[354014633,1740180675175,-500.0,0.0001186,2]
[354014634,1740180675184,-1417.33,0.0001186,2]
[354014635,1740180675195,-500.0,0.0001186,2]
[354014636,1740180675205,-3499.92,0.0001186,2]
[354014637,1740180675215,-500.0,0.0001186,2]
[354014638,1740180675225,-500.0,0.0001186,2]
[354014639,1740180675236,-820.61,0.0001186,2]
[354014640,1740180675246,-500.0,0.0001186,2]
[354014641,1740180675256,-738.7,0.0001186,2]
[354014642,1740180675267,-500.0,0.0001186,2]
[354014643,1740180675277,-500.0,0.0001186,2]
[354014644,1740180675287,-500.0,0.0001186,2]
[354014645,1740180675297,-500.0,0.0001186,2]
[354014646,1740180675307,-500.0,0.0001186,2]
[354014647,1740180675317,-500.0,0.0001186,2]
[354014648,1740180675329,-500.0,0.0001186,2]
[354014649,1740180675338,-500.0,0.0001186,2]
[354014650,1740180675348,-546.71014635,0.0001186,2]
[354014651,1740180675357,-1652.98,0.0001186,2]
[354014652,1740180675366,-500.0,0.0001186,2]
[354014653,1740180675376,-1014.71,0.0001186,2]
[354014654,1740180675385,-500.0,0.0001186,2]
[354014655,1740180675394,-1571.16,0.0001186,2]
[354014656,1740180675404,-605.21,0.0001186,2]
[354014657,1740180675413,-1000.0,0.0001186,2]
[354014658,1740180675422,-809.41,0.0001186,2]
[354014659,1740180675432,-350.12,0.0001186,2]
[354014660,1740180675442,-470.86510102,0.0001186,2]
[354014661,1740180675453,-817.73,0.0001186,2]
[354014662,1740180675463,-500.0,0.0001186,2]
[354014663,1740180675473,-813.29,0.0001186,2]
[354014664,1740180675482,-500.0,0.0001186,2]
[354014665,1740180675491,-500.0,0.0001186,2]
[354014666,1740180675501,-500.0,0.0001186,2]
[354014667,1740180675510,-598.74,0.0001186,2]
[354014668,1740180675520,-500.0,0.0001186,2]
[354014669,1740180675529,-544.58,0.0001186,2]
[354014670,1740180675539,-500.0,0.0001186,2]
[354014671,1740180675548,-604.85,0.0001186,2]
[354014672,1740180675558,-458.20232591,0.0001186,2]
[354014673,1740180675567,-500.0,0.0001186,2]
[354014674,1740180675577,-763.11,0.0001186,2]
[354014675,1740180675587,-514.53,0.0001186,2]
[354014676,1740180675597,-523.21,0.0001186,2]
[354014677,1740180675606,-500.0,0.00011861,2]
[354014678,1740180675616,-493.08,0.00011861,2]
[354014679,1740180675626,-944.98,0.00011863,2]
[354014680,1740180675637,-500.0,0.00011863,2]
[354014681,1740180675647,-500.0,0.00011863,2]
[354014682,1740180675656,-602.43,0.00011863,2]
[354014683,1740180675666,-726.8,0.00011863,2]
[354014684,1740180675676,-500.0,0.00011863,2]
[354014685,1740180675687,-392.7,0.00011863,2]
[354014686,1740180675696,-1601.17,0.00011863,2]
[354014687,1740180675707,-500.0,0.00011863,2]
[354014688,1740180675716,-561.26,0.00011863,2]
[354014689,1740180675726,-686.26,0.00011863,2]
[354014690,1740180675735,-658.34,0.00011863,2]
[354014691,1740180675744,-1257.33,0.00011863,2]
[354014692,1740180675754,-786.53,0.00011863,2]
[354014693,1740180675763,-796.14,0.00011863,2]
[354014694,1740180675772,-671.55,0.00011863,2]
[354014695,1740180675782,-578.65,0.00011863,2]
[354014696,1740180675791,-2368.54,0.00011863,2]
[354014697,1740180675801,-619.4,0.00011863,2]
[354014698,1740180675810,-527.9,0.00011863,2]
[354014699,1740180675819,-500.0,0.00011941,2]
[354014700,1740180675828,-500.0,0.00011941,2]
[354014701,1740180675837,-500.0,0.00011941,2]
[354014702,1740180675847,-500.0,0.00011941,2]
[354014703,1740180675856,-621.73,0.00011941,2]
[354014704,1740180675865,-960.49,0.00011941,2]
[354014705,1740180675876,-1496.97,0.00011941,2]
[354014706,1740180675886,-584.0,0.00011941,2]
[354014707,1740180675895,-1318.76,0.00011941,2]
[354014708,1740180675905,-527.01,0.00011941,2]
[354014709,1740180675914,-286.03411873,0.00011941,2]
[354014710,1740180675923,-531.46,0.00011942,2]
[354014711,1740180675933,-500.0,0.00011942,2]
[354014712,1740180675942,-500.0,0.00011942,2]
[354014713,1740180675952,-500.0,0.00011942,2]
[354014714,1740180675962,-500.0,0.00011942,2]
[354014715,1740180675971,-500.0,0.00011942,2]
[354014716,1740180675980,-500.0,0.00011942,2]
[354014717,1740180675990,-500.0,0.00011942,2]
[354014718,1740180676000,-567.73,0.00011942,2]
[354014719,1740180676009,-648.38,0.00011942,2]
[354014720,1740180676019,-908.79,0.00011942,2]
[354014721,1740180676028,-807.0,0.00011942,2]
[354014722,1740180676037,-1363.91,0.00011942,2]
[354014723,1740180676046,-2037.76,0.00011942,2]
[354014724,1740180676055,-500.0,0.00011942,2]
[354014725,1740180676064,-537.92,0.00011942,2]
[354014726,1740180676072,-620.22,0.00011942,2]
[354014727,1740180676081,-500.0,0.00011942,2]
[354014728,1740180676090,-500.0,0.00011942,2]
[354014729,1740180676100,-500.0,0.00011942,2]
[354014730,1740180676110,-545.7,0.00011942,2]
[354014731,1740180676119,-652.61,0.00011942,2]
[354014732,1740180676128,-500.0,0.00011942,2]
[354014733,1740180676137,-500.0,0.00011942,2]
[354014734,1740180676146,-1417.33,0.00011942,2]
[354014735,1740180676156,-500.0,0.00011942,2]
[354014736,1740180676165,-3499.92,0.00011942,2]
[354014737,1740180676174,-500.0,0.00011942,2]
[354014738,1740180676184,-500.0,0.00011942,2]
[354014739,1740180676193,-820.61,0.00011942,2]
[354014740,1740180676203,-500.0,0.00011942,2]
[354014741,1740180676212,-738.7,0.00011942,2]
[354014742,1740180676223,-500.0,0.00011942,2]
[354014743,1740180676234,-500.0,0.00011942,2]
[354014744,1740180676244,-500.0,0.00011942,2]
[354014745,1740180676254,-500.0,0.00011942,2]
[354014746,1740180676265,-500.0,0.00011942,2]
[354014747,1740180676274,-500.0,0.00011942,2]
[354014748,1740180676285,-500.0,0.00011942,2]
[354014749,1740180676294,-500.0,0.00011942,2]
[354014750,1740180676307,-1652.98,0.00011942,2]
[354014751,1740180676318,-500.0,0.00011942,2]
[354014752,1740180676329,-1014.71,0.00011942,2]
[354014753,1740180676338,-500.0,0.00011942,2]
[354014754,1740180676349,-1571.16,0.00011942,2]
[354014755,1740180676358,-605.21,0.00011942,2]
[354014756,1740180676368,-1000.0,0.00011942,2]
[354014757,1740180676377,-809.41,0.00011942,2]
[354014758,1740180676386,-817.73,0.00011942,2]
[354014759,1740180676396,-500.0,0.00011942,2]
[354014760,1740180676405,-813.29,0.00011942,2]
[354014761,1740180676415,-434.65,0.00011942,2]
[354014762,1740180676425,-500.0,0.00011942,2]
[354014763,1740180676435,-360.38,0.00011942,2]
[354014764,1740180676446,-598.74,0.00011942,2]
[354014765,1740180676456,-477.03,0.00011942,2]
[354014766,1740180676466,-544.58,0.00011942,2]
[354014767,1740180676475,-500.0,0.00011942,2]
[354014768,1740180676486,-604.85,0.00011942,2]
[354014769,1740180676495,-500.0,0.00011942,2]
[354014770,1740180676504,-763.11,0.00011942,2]
[354014771,1740180676513,-514.53,0.00011942,2]
[354014772,1740180676522,-523.21,0.00011942,2]
[354014773,1740180676532,-500.0,0.00011943,2]
[354014774,1740180676542,-944.98,0.00011945,2]
[354014775,1740180676553,-500.0,0.00011945,2]
[354014776,1740180676563,-500.0,0.00011945,2]
[354014777,1740180676572,-602.43,0.00011945,2]
[354014778,1740180676582,-726.8,0.00011945,2]
[354014779,1740180676591,-500.0,0.00011945,2]
[354014780,1740180676601,-1601.17,0.00011945,2]
[354014781,1740180676611,-500.0,0.00011945,2]
[354014782,1740180676620,-561.26,0.00011945,2]
[354014783,1740180676630,-686.26,0.00011945,2]
[354014784,1740180676640,-658.34,0.00011945,2]
[354014785,1740180676650,-1257.33,0.00011945,2]
[354014786,1740180676659,-786.53,0.00011945,2]
[354014787,1740180676668,-796.14,0.00011945,2]
[354014788,1740180676678,-671.55,0.00011945,2]
[354014789,1740180676688,-578.65,0.00011945,2]
[354014790,1740180676697,-2368.54,0.00011945,2]
[354014791,1740180676708,-619.4,0.00011945,2]
[354014792,1740180676718,-527.9,0.00011945,2]
[354014793,1740180676728,-500.0,0.00011948,2]
[354014794,1740180676738,-150.0,0.00011984,2]
[354014795,1740180676748,-150.0,0.00011984,2]
[354014796,1740180676757,-150.00000001,0.00011984,2]
[354014797,1740180676768,-150.0,0.00011984,2]
[354014798,1740180676779,-600.0,0.00012,2]
[354014799,1740180676790,-531.46,0.00012024,2]
[354014800,1740180676800,-500.0,0.00012024,2]
[354014801,1740180676811,-500.0,0.00012024,2]
[354014802,1740180676821,-500.0,0.00012024,2]
[354014803,1740180676831,-500.0,0.00012024,2]
[354014804,1740180676841,-500.0,0.00012024,2]
[354014805,1740180676850,-500.0,0.00012024,2]
[354014806,1740180676860,-189.04375709,0.00012024,2]
[354014807,1740180676870,-567.73,0.00012024,2]
[354014808,1740180676883,-908.79,0.00012024,2]
[354014809,1740180676894,-807.0,0.00012024,2]
[354014810,1740180676905,-1363.91,0.00012024,2]
[354014811,1740180676915,-2037.76,0.00012024,2]
[354014812,1740180676924,-500.0,0.00012024,2]
[354014813,1740180676934,-537.92,0.00012024,2]
[354014814,1740180676944,-500.0,0.00012024,2]
[354014815,1740180676953,-620.22,0.00012024,2]
[354014816,1740180676963,-500.0,0.00012024,2]
[354014817,1740180676973,-500.0,0.00012024,2]
[354014818,1740180676984,-208.26,0.00012024,2]
[354014819,1740180676995,-500.0,0.00012024,2]
[354014820,1740180677005,-545.7,0.00012024,2]
[354014821,1740180677014,-652.61,0.00012024,2]
[354014822,1740180677024,-500.0,0.00012024,2]
[354014823,1740180677034,-500.0,0.00012024,2]
[354014824,1740180677044,-1417.33,0.00012024,2]
[354014825,1740180677055,-500.0,0.00012024,2]
[354014826,1740180677066,-500.0,0.00012024,2]
[354014827,1740180677076,-3499.92,0.00012024,2]
[354014828,1740180677086,-470.86470862,0.00012024,2]
[354014829,1740180677097,-500.0,0.00012024,2]
[354014830,1740180677108,-820.61,0.00012024,2]
[354014831,1740180677119,-500.0,0.00012024,2]
[354014832,1740180677129,-738.7,0.00012024,2]
[354014833,1740180677138,-500.0,0.00012024,2]
[354014834,1740180677148,-500.0,0.00012024,2]
[354014835,1740180677159,-960.49,0.00012024,2]
[354014836,1740180677168,-582.81,0.00012024,2]
[354014837,1740180677178,-500.0,0.00012024,2]
[354014838,1740180677188,-500.0,0.00012024,2]
[354014839,1740180677197,-260.08838373,0.00012024,2]
[354014840,1740180677208,-500.0,0.00012024,2]
[354014841,1740180677218,-500.0,0.00012024,2]
[354014842,1740180677230,-1652.98,0.00012024,2]
[354014843,1740180677240,-500.0,0.00012024,2]
[354014844,1740180677251,-1014.71,0.00012024,2]
[354014845,1740180677261,-500.0,0.00012024,2]
[354014846,1740180677272,-1496.97,0.00012024,2]
[354014847,1740180677281,-1571.16,0.00012024,2]
[354014848,1740180677291,-605.21,0.00012024,2]
[354014849,1740180677302,-809.41,0.00012024,2]
[354014850,1740180677313,-584.0,0.00012024,2]
[354014851,1740180677323,-817.73,0.00012024,2]
[354014852,1740180677333,-500.0,0.00012024,2]
[354014853,1740180677342,-813.29,0.00012024,2]
[354014854,1740180677352,-1318.76,0.00012024,2]
[354014855,1740180677362,-500.0,0.00012024,2]
[354014856,1740180677371,-598.74,0.00012024,2]
[354014857,1740180677381,-527.01,0.00012024,2]
[354014858,1740180677390,-544.58,0.00012024,2]
[354014859,1740180677400,-500.0,0.00012024,2]
[354014860,1740180677410,-604.85,0.00012024,2]
[354014861,1740180677419,-172.01,0.00012024,2]
[354014862,1740180677428,-763.11,0.00012024,2]
[354014863,1740180677438,-514.53,0.00012024,2]
[354014864,1740180677447,-422.01640822,0.00012024,2]
[354014865,1740180677645,-101.19359178,0.00012024,2]
[354014866,1740180677655,-574.16063354,0.00012026,2]
[354014867,1740180677665,-944.98,0.00012027,2]
[354014868,1740180677676,-500.0,0.00012027,2]
[354014869,1740180677686,-500.0,0.00012027,2]
[354014870,1740180677696,-602.43,0.00012027,2]
[354014871,1740180677706,-726.8,0.00012027,2]
[354014872,1740180677715,-500.0,0.00012027,2]
[354014873,1740180677725,-1601.17,0.00012027,2]
[354014874,1740180677735,-500.0,0.00012027,2]
[354014875,1740180677745,-561.26,0.00012027,2]
[354014876,1740180677755,-686.26,0.00012027,2]
[354014877,1740180677765,-658.34,0.00012027,2]
[354014878,1740180677775,-1257.33,0.00012027,2]
[354014879,1740180677784,-786.53,0.00012027,2]
[354014880,1740180677794,-796.14,0.00012027,2]
[354014881,1740180677804,-671.55,0.00012027,2]
[354014882,1740180677814,-578.65,0.00012027,2]
[354014883,1740180677824,-2368.54,0.00012027,2]
[354014884,1740180677834,-619.4,0.00012027,2]
[354014885,1740180677844,-527.9,0.00012027,2]
[354014886,1740180677853,-2000.0,0.000121,2]
[354014887,1740180677863,-2000.0,0.000121,2]
[354014888,1740180677872,-2000.0,0.000121,2]
[354014889,1740180677884,-2000.0,0.000121,2]
[354014890,1740180677894,-500.0,0.00012106,2]
[354014891,1740180677904,-500.0,0.00012106,2]
[354014892,1740180677914,-633.92,0.00012106,2]
[354014893,1740180677925,-278.09,0.00012106,2]
[354014894,1740180677934,-960.49,0.00012106,2]
[354014895,1740180677944,-1496.97,0.00012106,2]
[354014896,1740180677955,-584.0,0.00012106,2]
[354014897,1740180677965,-1318.76,0.00012106,2]
[354014898,1740180677975,-527.01,0.00012106,2]
[354014899,1740180677985,-531.46,0.00012107,2]
[354014900,1740180677995,-500.0,0.00012107,2]
[354014901,1740180678006,-500.0,0.00012107,2]
[354014902,1740180678016,-500.0,0.00012107,2]
[354014903,1740180678026,-500.0,0.00012107,2]
[354014904,1740180678036,-500.0,0.00012107,2]
[354014905,1740180678046,-616.84,0.00012107,2]
[354014906,1740180678056,-567.73,0.00012107,2]
[354014907,1740180678066,-908.79,0.00012107,2]
[354014908,1740180678076,-807.0,0.00012107,2]
[354014909,1740180678086,-1363.91,0.00012107,2]
[354014910,1740180678096,-2037.76,0.00012107,2]
[354014911,1740180678106,-500.0,0.00012107,2]
[354014912,1740180678116,-537.92,0.00012107,2]
[354014913,1740180678125,-620.22,0.00012107,2]
[354014914,1740180678135,-500.0,0.00012107,2]
[354014915,1740180678144,-545.7,0.00012107,2]
[354014916,1740180678154,-652.61,0.00012107,2]
[354014917,1740180678163,-500.0,0.00012107,2]
[354014918,1740180678173,-500.0,0.00012107,2]
[354014919,1740180678182,-1417.33,0.00012107,2]
[354014920,1740180678193,-500.0,0.00012107,2]
[354014921,1740180678202,-2181.55768887,0.00012107,2]
[354014922,1740180678316,-1318.36231113,0.00012107,2]
[354014923,1740180678326,-500.0,0.00012107,2]
[354014924,1740180678336,-820.61,0.00012107,2]
[354014925,1740180678346,-207.55817617,0.00012107,2]
[354014926,1740180678358,-277.70397544,0.00012107,2]
[354014927,1740180678369,-14.73784839,0.00012107,2]
[354014928,1740180678379,-484.74637489,0.00012107,2]
[354014929,1740180678390,-253.95362511,0.00012107,2]
[354014930,1740180678400,-500.0,0.00012107,2]
[354014931,1740180678410,-219.53889489,0.00012107,2]
[354014932,1740180678430,-453.16590618,0.0001112,2]
[354014933,1740180678441,-371.25409382,0.0001112,2]
[354014934,1740180678451,-280.46110511,0.00012107,2]
[354014935,1740180678462,-500.0,0.00012107,2]
[354014936,1740180678471,-500.0,0.00012107,2]
[354014937,1740180678480,-539.05,0.00012107,2]
[354014938,1740180678488,-1652.98,0.00012107,2]
[354014939,1740180678497,-489.48,0.00012107,2]
[354014940,1740180678506,-1014.71,0.00012107,2]
[354014941,1740180678516,-390.28,0.00012107,2]
[354014942,1740180678527,-1571.16,0.00012107,2]
[354014943,1740180678537,-605.21,0.00012107,2]
[354014944,1740180678547,-809.41,0.00012107,2]
[354014945,1740180678556,-817.73,0.00012107,2]
[354014946,1740180678567,-500.0,0.00012107,2]
[354014947,1740180678577,-813.29,0.00012107,2]
[354014948,1740180678587,-500.0,0.00012107,2]
[354014949,1740180678596,-598.74,0.00012107,2]
[354014950,1740180678606,-544.58,0.00012107,2]
[354014951,1740180678616,-500.0,0.00012107,2]
[354014952,1740180678626,-604.85,0.00012107,2]
[354014953,1740180678635,-763.11,0.00012107,2]
[354014954,1740180678645,-514.53,0.00012107,2]
[354014955,1740180678655,-523.21,0.00012107,2]
[354014956,1740180678665,-944.98,0.00012109,2]
[354014957,1740180678676,-500.0,0.00012109,2]
[354014958,1740180678686,-500.0,0.00012109,2]
[354014959,1740180678696,-602.43,0.00012109,2]
[354014960,1740180678706,-726.8,0.00012109,2]
[354014961,1740180678959,-500.0,0.00012109,2]
[354014962,1740180678973,-1601.17,0.00012109,2]
[354014963,1740180678983,-500.0,0.00012109,2]
[354014964,1740180678993,-561.26,0.00012109,2]
[354014965,1740180679002,-686.26,0.00012109,2]
[354014966,1740180679012,-658.34,0.00012109,2]
[354014967,1740180679022,-1257.33,0.00012109,2]
[354014968,1740180679032,-786.53,0.00012109,2]
[354014969,1740180679041,-796.14,0.00012109,2]
[354014970,1740180679051,-671.55,0.00012109,2]
[354014971,1740180679061,-578.65,0.00012109,2]
[354014972,1740180679071,-2368.54,0.00012109,2]
[354014973,1740180679080,-619.4,0.00012109,2]
[354014974,1740180679090,-527.9,0.00012109,2]
[354014975,1740180679099,-500.0,0.00012188,2]
[354014976,1740180679109,-500.0,0.00012188,2]
[354014977,1740180679119,-960.49,0.00012188,2]
[354014978,1740180679128,-1496.97,0.00012188,2]
[354014979,1740180679138,-584.0,0.00012188,2]
[354014980,1740180679147,-1318.76,0.00012188,2]
[354014981,1740180679156,-527.01,0.00012188,2]
[354014982,1740180679166,-531.46,0.00012189,2]
[354014983,1740180679177,-500.0,0.00012189,2]
[354014984,1740180679187,-500.0,0.00012189,2]
[354014985,1740180679196,-500.0,0.00012189,2]
[354014986,1740180679206,-500.0,0.00012189,2]
[354014987,1740180679216,-500.0,0.00012189,2]
[354014988,1740180679227,-567.73,0.00012189,2]
[354014989,1740180679237,-908.79,0.00012189,2]
[354014990,1740180679247,-807.0,0.00012189,2]
[354014991,1740180679256,-1363.91,0.00012189,2]
[354014992,1740180679266,-2037.76,0.00012189,2]
[354014993,1740180679276,-500.0,0.00012189,2]
[354014994,1740180679285,-537.92,0.00012189,2]
[354014995,1740180679295,-620.22,0.00012189,2]
[354014996,1740180679306,-500.0,0.00012189,2]
[354014997,1740180679316,-545.7,0.00012189,2]
[354014998,1740180679326,-652.61,0.00012189,2]
[354014999,1740180679336,-500.0,0.00012189,2]
[354015000,1740180679346,-500.0,0.00012189,2]
[354015001,1740180679356,-1417.33,0.00012189,2]
[354015002,1740180679366,-282.55,0.00012189,2]
[354015003,1740180679377,-3499.92,0.00012189,2]
[354015004,1740180679391,-500.0,0.00012189,2]
[354015005,1740180679405,-820.61,0.00012189,2]
[354015006,1740180679416,-738.7,0.00012189,2]
[354015007,1740180679428,-500.0,0.00012189,2]
[354015008,1740180679438,-500.0,0.00012189,2]
[354015009,1740180679448,-500.0,0.00012189,2]
[354015010,1740180679458,-500.0,0.00012189,2]
[354015011,1740180679483,-1652.98,0.00012189,2]
[354015012,1740180679493,-1014.71,0.00012189,2]
[354015013,1740180679505,-1571.16,0.00012189,2]
[354015014,1740180679516,-605.21,0.00012189,2]
[354015015,1740180679526,-809.41,0.00012189,2]
[354015016,1740180679536,-817.73,0.00012189,2]
[354015017,1740180679547,-500.0,0.00012189,2]
[354015018,1740180679557,-813.29,0.00012189,2]
[354015019,1740180679568,-500.0,0.00012189,2]
[354015020,1740180679578,-598.74,0.00012189,2]
[354015021,1740180679588,-544.58,0.00012189,2]
[354015022,1740180679598,-500.0,0.00012189,2]
[354015023,1740180679608,-604.85,0.00012189,2]
[354015024,1740180679619,-763.11,0.00012189,2]
[354015025,1740180679629,-514.53,0.00012189,2]
[354015026,1740180679639,-523.21,0.00012189,2]